bitfinex/quotes_ETHUSD_20240716
["timestamp","ask_amount","ask_price","bid_price","bid_amount"]
[1721132105579,3.50415252,3419.4,3419.3,0.146]
[1721132106112,0.57967252,3419.4,3419.3,0.146]
[1721132106313,3.50407252,3419.5,3419.3,0.146]
[1721132106538,0.57967252,3419.4,3419.3,0.146]
[1721132107416,3.50415252,3419.4,3419.3,0.146]
[1721132107621,2.92448,3419.4,3419.3,0.146]
[1721132107818,0.57942576,3419.4,3419.3,0.146]
[1721132108337,2.111598,3419.4,3419.3,0.146]
[1721132109195,0.57942576,3419.4,3419.3,2.5986]
[1721132109398,0.57942576,3419.4,3419.3,5.78303]
[1721132109798,1.22572505,3419.7,3419.5,2.92438]
[1721132110002,0.57935466,3419.6,3419.5,2.92438]
[1721132110245,0.57935466,3419.6,3419.3,5.78296]
[1721132110388,1.80507971,3419.6,3419.3,5.78296]
[1721132110588,0.57935466,3419.5,3419.4,2.92448]
[1721132110913,0.57935466,3419.5,3419.4,3.795224]
[1721132111222,1.2263958,3419.7,3419.5,2.9244]
[1721132111529,1.2263958,3420.0,3419.6,2.92427]
[1721132111726,0.57972115,3419.9,3419.6,2.92427]
[1721132111920,0.57972115,3419.9,3419.7,3.3037214]
[1721132112301,0.57972115,3419.9,3419.8,2.92414]
[1721132112702,0.57972115,3419.9,3419.7,0.3795014]
[1721132113303,0.57972115,3419.8,3419.7,3.3037314]
[1721132113636,1.2263958,3420.1,3419.7,3.3037314]
[1721132113637,1.80614176,3420.0,3419.8,2.92414]
[1721132113801,1.80614176,3419.9,3419.4,2.92447]
[1721132114003,1.80621812,3419.8,3419.6,2.92429]
[1721132114200,1.22648227,3419.8,3419.6,2.92429]
[1721132114736,5.21952,3420.3,3419.6,2.92429]
[1721132114737,1.22648227,3419.9,3419.6,2.92429]
[1721132115103,1.22648227,3420.0,3419.7,2.92422]
[1721132115611,2.9235,3420.6,3419.7,2.92422]
[1721132115612,1.22648227,3419.9,3419.7,2.92422]
[1721132115961,1.22648227,3420.0,3419.9,2.92406]
[1721132116243,1.22648227,3420.3,3420.0,2.92397]
[1721132116560,1.53312286,3420.5,3420.1,2.92386]
[1721132116561,1.22648227,3420.5,3420.1,2.92386]
[1721132116739,1.22648227,3420.5,3420.3,2.92371]
[1721132116941,1.22648227,3420.5,3420.3,5.84735]
[1721132117143,1.22648227,3420.7,3420.4,3.51420226]
[1721132117434,1.22648227,3420.8,3420.5,2.92349]
[1721132117595,2.9228,3421.4,3420.8,5.84658]
[1721132117596,1.22648227,3420.9,3420.8,5.84658]
[1721132117797,1.22648227,3421.0,3420.6,2.92345]
[1721132118030,1.22648227,3421.0,3420.7,2.92337]
[1721132118332,1.22648227,3421.0,3420.6,2.92345]
[1721132118333,1.22648227,3421.1,3420.8,2.92323]
[1721132119110,1.22648227,3421.2,3420.8,2.92323]
[1721132119531,1.22648227,3421.2,3420.7,2.92336]
[1721132119942,1.22648227,3421.2,3421.0,2.92311]
[1721132120099,1.53287133,3421.4,3420.8,2.92325]
[1721132120100,1.22648227,3421.4,3420.8,2.92325]
[1721132120318,1.22648227,3421.3,3420.8,2.92325]
[1721132120633,1.53086135,3421.5,3420.9,2.92318]
[1721132120634,1.22648227,3421.4,3420.9,2.92318]
[1721132120828,1.22648227,3421.4,3421.1,2.92303]
[1721132121349,1.22648227,3421.4,3420.9,2.92319]
[1721132121652,1.53086135,3421.6,3420.9,2.92319]
[1721132121653,1.22648227,3421.5,3420.9,2.92319]
[1721132121955,1.22648227,3421.6,3421.0,0.05846024]
[1721132122159,1.53086135,3421.7,3421.0,0.05846024]
[1721132122160,1.22648227,3421.7,3421.1,2.92302]
[1721132122328,4.22648227,3421.8,3421.1,2.92302]
[1721132122662,1.22648227,3421.8,3421.1,2.92302]
[1721132122833,2.2689,3421.7,3420.6,2.3183]
[1721132123166,2.2689,3421.7,3420.6,2.92345]
[1721132123167,4.14931227,3421.4,3420.6,2.92345]
[1721132123334,0.55,3421.3,3420.4,2.92356]
[1721132123530,2.92301,3421.2,3420.2,2.92375]
[1721132123746,2.92321,3420.9,3420.0,2.92397]
[1721132123950,0.05839352,3420.8,3420.0,2.92397]
[1721132124270,2.98170352,3420.8,3420.0,2.92397]
[1721132124439,0.05839352,3420.7,3420.0,2.92397]
[1721132125062,4.14697908,3420.8,3420.1,2.92385]
[1721132125439,2.92331,3420.8,3420.1,2.92385]
[1721132126155,0.05839352,3420.7,3420.1,2.92385]
[1721132126657,1.22386959,3420.9,3420.2,2.92379]
[1721132126840,4.22386959,3420.9,3420.2,2.92379]
[1721132127449,3.0,3420.9,3420.2,2.92379]
[1721132127623,4.22386959,3420.9,3420.2,2.92379]
[1721132127822,3.0,3420.9,3420.2,2.92379]
[1721132128552,3.0,3420.9,3420.3,2.9237]
[1721132128759,1.22386959,3421.0,3420.3,2.9237]
[1721132129065,7.14689959,3421.1,3420.3,2.9237]
[1721132129463,7.14689959,3421.1,3420.4,2.92362]
[1721132129838,7.14649461,3421.1,3420.4,2.92362]
[1721132130320,4.22346461,3421.1,3420.4,2.92362]
[1721132130728,4.22346461,3421.1,3420.5,2.92352]
[1721132130951,1.22346461,3421.4,3420.9,2.92314]
[1721132131167,1.22346461,3421.6,3420.9,2.92314]
[1721132131369,2.92235,3421.9,3421.2,2.92294]
[1721132131370,1.22346461,3421.9,3421.2,2.92294]
[1721132131660,1.22346461,3422.0,3421.2,2.92294]
[1721132131869,8.89933076,3422.1,3421.4,2.92272]
[1721132131870,8.59346461,3422.1,3421.4,2.92272]
[1721132132076,1.22346461,3422.0,3421.2,5.84582]
[1721132132241,1.22346461,3422.0,3421.3,2.92285]
[1721132132823,1.22346461,3422.0,3421.4,2.92275]
[1721132133068,1.22346461,3422.1,3421.4,2.92275]
[1721132133361,4.45019646,3422.3,3421.4,2.92275]
[1721132133362,4.22346461,3422.2,3421.4,2.92275]
[1721132133727,7.14557461,3422.2,3421.4,2.92275]
[1721132133925,4.22346461,3422.2,3421.4,2.92275]
[1721132134127,1.22346461,3422.2,3421.6,2.92254]
[1721132134451,3.0,3422.1,3421.6,2.92254]
[1721132134625,3.0,3422.3,3421.6,2.92254]
[1721132134829,4.44930458,3422.7,3421.6,2.92254]
[1721132134830,1.22346461,3422.6,3421.6,2.92254]
[1721132135132,3.0,3422.6,3421.8,2.92243]
[1721132136292,3.05839352,3422.6,3421.7,2.9225]
[1721132136617,2.92189,3422.5,3421.7,2.9225]
[1721132136758,5.92192,3422.4,3421.6,2.92254]
[1721132137160,3.0,3422.4,3421.3,2.2681]
[1721132137369,2.92208,3422.3,3421.5,2.92265]
[1721132137847,2.92208,3422.3,3421.4,5.84549]
[1721132138052,2.92208,3422.3,3421.4,2.92272]
[1721132138386,2.9221,3422.2,3421.4,2.92269]
[1721132138548,2.9221,3422.2,3421.5,2.92268]
[1721132138748,2.9221,3422.2,3421.3,2.787202]
[1721132138749,2.92224,3422.1,3421.3,2.787202]
[1721132139079,2.92227,3422.0,3421.2,2.92291]
[1721132139247,2.92227,3422.0,3421.3,2.92285]
[1721132139447,2.92219,3422.1,3421.3,2.92285]
[1721132139790,4.22346461,3422.7,3421.5,2.92268]
[1721132139988,2.92215,3422.2,3421.5,2.92268]
[1721132141243,2.92215,3422.2,3421.4,2.92277]
[1721132141449,2.92215,3422.2,3421.5,2.92269]
[1721132143103,2.92196,3422.4,3421.6,5.214]
[1721132143271,2.92202,3422.3,3421.6,5.214]
[1721132143471,2.92196,3422.4,3421.6,5.214]
[1721132143472,2.92209,3422.2,3421.6,5.214]
[1721132143811,2.92209,3422.2,3421.6,2.2914]
[1721132143983,2.92196,3422.4,3421.6,2.2914]
[1721132144370,2.92196,3422.4,3421.6,5.214]
[1721132144570,2.92201,3422.3,3421.6,5.214]
[1721132144762,2.92201,3422.3,3421.6,6.0935739]
[1721132144966,0.55,3422.6,3421.6,6.0935739]
[1721132144967,2.92185,3422.5,3421.7,2.92247]
[1721132145198,3.0,3422.4,3421.7,2.9809145]
[1721132146973,3.0,3422.4,3421.7,5.9033645]
[1721132147508,3.0,3422.4,3421.7,2.92245]
[1721132147509,5.92193,3422.4,3421.7,2.92245]
[1721132147719,2.92206,3422.3,3421.5,2.92265]
[1721132147867,2.92211,3422.2,3421.5,2.92265]
[1721132151806,3.0,3422.4,3421.7,2.92247]
[1721132151991,2.9217,3422.7,3421.8,0.05844247]
[1721132152196,2.9217,3422.7,3421.9,2.9223]
[1721132152411,3.0,3422.8,3422.0,2.92226]
[1721132154023,2.92167,3422.7,3422.0,2.92226]
[1721132155116,2.92167,3422.7,3421.8,2.92243]
[1721132155117,2.92167,3422.7,3421.8,2.92237]
[1721132155296,2.92177,3422.6,3421.8,2.92237]
[1721132155796,2.92177,3422.6,3421.9,2.92229]
[1721132157101,5.92158,3422.8,3421.9,6.69102569]
[1721132157607,5.92158,3422.8,3422.2,2.92205]
[1721132157608,3.0,3422.8,3422.2,2.92205]
[1721132157909,3.0,3422.9,3422.2,2.92205]
[1721132158691,5.9215,3422.9,3422.1,2.92217]
[1721132159245,3.0,3422.9,3421.7,2.3077]
[1721132159529,2.92164,3422.8,3421.8,3.18435769]
[1721132159728,2.92182,3422.6,3421.8,6.10669769]
[1721132159912,2.92182,3422.6,3421.8,3.18431769]
[1721132160116,3.0,3422.9,3422.2,2.92209]
[1721132160299,2.92151,3422.9,3422.3,2.3961]
[1721132161230,2.92144,3423.0,3422.3,2.3961]
[1721132161442,3.0,3422.9,3422.3,2.3961]
[1721132161769,3.60581073,3423.3,3422.6,2.92175]
[1721132161770,1.21961073,3423.3,3422.6,2.92175]
[1721132161938,2.92118,3423.3,3422.6,2.92175]
[1721132162094,5.92118,3423.3,3422.6,2.92175]
[1721132166031,3.0,3423.3,3422.7,2.92166]
[1721132166234,5.92111,3423.4,3422.7,2.92166]
[1721132166943,5.92111,3423.4,3422.6,0.51311609]
[1721132167240,2.92117,3423.3,3422.5,2.92182]
[1721132167821,2.92117,3423.3,3422.6,2.92174]
[1721132172113,2.9232,3423.4,3422.8,2.2655]
[1721132172325,2.9232,3423.4,3423.1,2.92132]
[1721132174236,2.9232,3423.4,3422.8,2.2655]
[1721132174437,2.9232,3423.4,3422.8,5.18702]
[1721132174734,2.9232,3423.4,3422.9,2.92147]
[1721132175249,2.9232,3423.4,3423.0,2.9214]
[1721132175425,2.9232,3423.4,3423.0,3.732242]
[1721132175747,2.9232,3423.4,3423.2,2.92123]
[1721132176986,2.9232,3423.4,3423.3,2.92115]
[1721132179849,2.9232,3423.4,3423.3,8.1483]
[1721132180695,2.9232,3423.4,3423.3,8.2943]
[1721132180849,2.9232,3423.4,3423.3,9.2048142]
[1721132181049,2.9232,3423.4,3423.3,6.2836642]
[1721132181278,2.9232,3423.4,3423.3,3.06715]
[1721132185893,2.9232,3423.4,3423.3,8.4853]
[1721132186170,2.9232,3423.4,3423.3,11.40645]
[1721132186598,2.9232,3423.4,3423.3,8.4853]
[1721132186811,2.9232,3423.4,3423.3,5.56415]
[1721132187014,2.9232,3423.4,3423.3,1.0756242]
[1721132187183,2.9232,3423.4,3423.3,3.9967742]
[1721132187664,2.9232,3423.4,3423.3,6.9179242]
[1721132187889,2.9232,3423.4,3423.3,3.9967742]
[1721132189977,2.9232,3423.4,3423.3,1.0756242]
[1721132190408,2.9232,3423.4,3423.3,3.9967742]
[1721132196285,2.9232,3423.4,3423.3,6.9179242]
[1721132197539,2.9232,3423.4,3423.3,3.9967742]
[1721132197683,2.9232,3423.4,3423.3,0.146]
[1721132197887,5.84427,3423.4,3423.3,0.146]
[1721132198197,7.64533213,3423.4,3423.3,0.146]
[1721132199233,4.72426213,3423.4,3423.3,0.146]
[1721132199437,3.50228442,3423.4,3423.3,0.146]
[1721132199989,6.42335442,3423.4,3423.3,0.146]
[1721132200221,7.64714923,3423.4,3423.3,0.146]
[1721132200636,11.70947893,3423.4,3423.3,0.146]
[1721132200927,14.70947893,3423.4,3423.3,0.146]
[1721132203351,17.60141,3423.4,3423.3,0.146]
[1721132203497,20.32408691,3423.4,3423.3,0.146]
[1721132203696,18.18061398,3423.4,3423.3,0.146]
[1721132203936,24.18768398,3423.4,3423.3,0.146]
[1721132204096,24.56237221,3423.4,3423.3,0.146]
[1721132204604,29.74544461,3423.4,3423.3,0.146]
[1721132204907,27.09434961,3423.4,3423.3,0.146]
[1721132205095,33.82473138,3423.4,3423.3,1e-05]
[1721132205295,33.82473138,3423.4,3421.0,7.3]
[1721132205296,2.92239,3421.9,3421.0,7.3]
[1721132205515,2.92239,3421.9,3420.5,12.16]
[1721132205516,2.92276,3421.5,3420.6,2.92345]
[1721132205734,2.92276,3421.5,3420.7,4.0]
[1721132205735,0.57920398,3421.4,3420.7,4.0]
[1721132206043,0.57920398,3421.4,3420.7,2.92332]
[1721132206337,2.92276,3421.5,3420.7,2.92332]
[1721132206533,2.92254,3421.7,3420.8,3.755727]
[1721132206534,0.57927352,3421.4,3420.8,3.755727]
[1721132206736,2.92261,3421.6,3420.8,3.755727]
[1721132206944,3.50196965,3421.5,3420.8,3.755727]
[1721132207111,2.92261,3421.6,3420.8,3.755727]
[1721132207437,2.9227,3421.5,3420.8,3.755727]
[1721132207645,2.9227,3421.5,3420.9,0.6679177]
[1721132208541,2.92245,3421.8,3421.0,2.92311]
[1721132208895,2.92261,3421.6,3420.9,2.9232]
[1721132209101,2.92261,3421.6,3420.7,8.93268]
[1721132209343,2.9227,3421.5,3420.7,6.00931]
[1721132210013,2.92278,3421.4,3420.7,2.92337]
[1721132210215,2.92261,3421.6,3420.8,0.848707]
[1721132210850,2.92261,3421.6,3420.8,3.771967]
[1721132211146,2.9227,3421.5,3420.8,3.771967]
[1721132211362,1.22186242,3422.0,3420.8,3.771967]
[1721132211363,2.92246,3421.8,3420.8,3.771967]
[1721132211517,2.92232,3422.0,3421.0,2.92303]
[1721132211740,2.92242,3421.9,3421.1,3.6087937]
[1721132211948,2.92244,3421.8,3421.1,3.6087937]
[1721132212329,2.92244,3421.8,3421.1,0.6857737]
[1721132212545,2.9227,3421.5,3420.8,0.848707]
[1721132214394,2.92253,3421.7,3420.8,0.848707]
[1721132214395,2.92261,3421.6,3420.8,0.848707]
[1721132214655,2.92271,3421.5,3420.8,0.848707]
[1721132215349,2.92253,3421.7,3420.8,3.771977]
[1721132215350,5.84513,3421.7,3420.8,3.771977]
[1721132215647,2.92253,3421.7,3420.9,4.2781347]
[1721132216515,2.92271,3421.5,3420.9,4.2781347]
[1721132216879,2.92288,3421.3,3420.5,2.4777]
[1721132217022,2.98139352,3421.2,3420.5,2.4777]
[1721132217390,2.98139352,3421.2,3420.1,6.00985]
[1721132217391,2.92306,3421.1,3420.1,5.25365]
[1721132217665,2.9232,3420.9,3420.1,2.3298]
[1721132217961,2.98168352,3420.8,3420.1,2.3298]
[1721132218175,0.05839352,3420.7,3420.1,3.456179]
[1721132218540,0.05839352,3420.7,3419.7,2.3298]
[1721132218541,2.92362,3420.5,3419.7,2.3298]
[1721132218720,2.92377,3420.3,3419.4,2.92447]
[1721132219048,5.3783,3420.8,3418.7,10.22503]
[1721132219049,2.92424,3419.7,3418.7,10.22503]
[1721132219256,0.05839352,3419.6,3418.7,2.92503]
[1721132219668,0.05839352,3419.6,3418.8,2.92497]
[1721132219845,0.05839352,3419.6,3418.6,2.3298]
[1721132219846,2.92449,3419.4,3418.6,2.3298]
[1721132220045,2.92449,3419.4,3418.4,2.92532]
[1721132220046,2.92457,3419.3,3418.7,0.834112]
[1721132220264,2.92457,3419.3,3418.2,2.92549]
[1721132220772,2.92448,3419.5,3418.6,2.92516]
[1721132221561,5.38227,3419.9,3418.8,2.92499]
[1721132221833,3.019,3420.4,3419.1,2.92473]
[1721132222055,2.92392,3420.1,3419.1,2.92473]
[1721132222363,2.92412,3419.9,3419.1,3.818279]
[1721132222569,2.92392,3420.1,3419.1,3.818279]
[1721132222803,2.4582,3420.5,3419.1,3.818279]
[1721132222804,2.4582,3420.5,3419.1,6.375849]
[1721132222961,2.92396,3420.1,3419.3,2.92455]
[1721132223296,2.92396,3420.1,3419.3,4.1470629]
[1721132223447,2.92396,3420.1,3419.3,1.2225129]
[1721132223646,2.92396,3420.1,3419.2,2.92465]
[1721132223957,2.92415,3419.8,3419.0,2.92482]
[1721132224154,2.92375,3420.3,3419.0,3.086]
[1721132224492,2.9242,3419.8,3419.0,2.92476]
[1721132224650,2.92425,3419.7,3419.0,2.92476]
[1721132224980,2.92425,3419.7,3419.0,3.517236]
[1721132225279,2.92429,3419.7,3418.8,2.92492]
[1721132225477,2.92429,3419.7,3418.9,3.0]
[1721132226876,2.92429,3419.7,3418.9,5.9249]
[1721132227124,2.92429,3419.7,3419.0,2.92482]
[1721132227328,2.92429,3419.7,3419.0,2.92483]
[1721132228924,3.019,3420.4,3419.0,2.92483]
[1721132229090,2.92411,3419.9,3419.0,4.118412]
[1721132229412,2.92411,3419.9,3419.1,2.92473]
[1721132229807,2.92395,3420.1,3419.2,2.92463]
[1721132230222,2.92395,3420.1,3419.0,4.118412]
[1721132230223,2.92345,3420.7,3419.6,2.9243]
[1721132230400,3.18,3420.8,3419.7,0.29243]
[1721132230601,3.18,3420.8,3419.6,2.9243]
[1721132230602,3.23839352,3420.8,3419.6,2.9243]
[1721132231014,2.9236,3420.5,3419.6,2.9243]
[1721132231213,2.92363,3420.4,3419.7,2.92418]
[1721132231410,2.92372,3420.3,3419.5,2.92434]
[1721132231898,2.92372,3420.3,3419.6,2.92431]
[1721132232989,2.92372,3420.3,3419.4,2.92445]
[1721132233215,2.92372,3420.3,3419.5,2.92439]
[1721132233388,2.92372,3420.3,3419.6,2.92425]
[1721132233822,2.9236,3420.5,3419.6,2.92423]
[1721132234027,2.92341,3420.7,3419.7,2.92421]
[1721132234194,0.55,3420.6,3419.7,2.92421]
[1721132234707,0.55,3420.6,3419.6,2.92423]
[1721132234708,5.84735,3420.4,3419.5,2.92434]
[1721132235027,2.92373,3420.3,3419.5,2.92434]
[1721132235235,2.924,3420.0,3419.3,2.3434]
[1721132235387,2.924,3420.0,3419.3,3.0]
[1721132235822,2.924,3420.0,3419.3,5.92452]
[1721132236226,2.924,3420.0,3419.3,3.0]
[1721132236403,2.924,3420.0,3419.2,3.0]
[1721132236605,2.924,3420.0,3417.6,2.92597]
[1721132236606,2.92431,3419.6,3418.9,2.92485]
[1721132237688,2.92431,3419.6,3418.6,2.9251]
[1721132238006,2.92431,3419.6,3418.8,2.92495]
[1721132238334,2.9245,3419.4,3418.9,3.0]
[1721132238550,2.9245,3419.4,3418.6,2.9251]
[1721132238692,2.92492,3418.9,3418.0,2.92562]
[1721132239540,2.92492,3418.9,3418.0,3.47867921]
[1721132239697,2.92492,3418.9,3418.1,2.92559]
[1721132240632,2.92501,3418.8,3417.9,2.92573]
[1721132240839,2.92501,3418.8,3418.0,3.0]
[1721132241434,2.92517,3418.7,3418.0,3.0]
[1721132241725,2.92517,3418.7,3417.9,3.0]
[1721132241947,2.92517,3418.7,3417.9,5.92575]
[1721132243509,2.92501,3418.8,3417.9,3.0]
[1721132243510,2.92518,3418.6,3417.9,3.0]
[1721132243839,2.92518,3418.6,3417.6,8.93802]
[1721132243840,2.92534,3418.4,3417.7,3.0]
[1721132244197,2.92534,3418.4,3417.6,2.92602]
[1721132245534,2.92534,3418.4,3417.5,2.9261]
[1721132245535,2.92547,3418.3,3417.5,2.9261]
[1721132247232,2.92561,3418.1,3417.3,2.92623]
[1721132247439,2.92568,3418.0,3417.4,3.0]
[1721132247948,2.92568,3418.0,3417.3,5.92628]
[1721132248665,2.92561,3418.1,3417.4,2.92617]
[1721132249023,2.92505,3418.8,3417.5,0.05851893]
[1721132249350,2.92505,3418.8,3417.3,7.511623]
[1721132249351,2.92513,3418.7,3417.9,2.9257]
[1721132249562,2.92505,3418.8,3417.9,2.9257]
[1721132249721,2.92505,3418.8,3417.7,3.086]
[1721132249722,2.92517,3418.6,3417.7,3.086]
[1721132250117,2.92517,3418.6,3417.7,6.01188]
[1721132250314,2.92517,3418.6,3417.8,2.92582]
[1721132250571,2.92517,3418.6,3417.8,2.92578]
[1721132250724,2.92517,3418.6,3417.6,6.01199]
[1721132251059,2.92517,3418.6,3417.9,2.92576]
[1721132251352,2.3489,3418.9,3417.3,3.0]
[1721132251353,0.55,3418.5,3417.3,3.0]
[1721132251539,0.05839352,3418.7,3416.9,5.94556]
[1721132251540,2.92563,3418.1,3417.4,2.92613]
[1721132251921,2.92571,3418.0,3417.2,2.92632]
[1721132252117,2.92571,3418.0,3417.3,2.92628]
[1721132252341,2.92571,3418.0,3417.3,5.92628]
[1721132253032,2.92571,3418.0,3417.3,3.0]
[1721132253234,2.92571,3418.0,3417.2,3.0]
[1721132253441,2.92586,3417.8,3417.2,3.0]
[1721132253644,5.8518,3417.8,3417.1,3.0]
[1721132253831,2.92586,3417.8,3417.1,3.0]
[1721132254966,2.92595,3417.7,3417.1,3.0]
[1721132256022,2.92579,3417.9,3417.1,3.0]
[1721132256222,2.4096,3418.1,3417.1,3.0]
[1721132256454,2.92571,3418.0,3417.1,3.0]
[1721132256634,2.92554,3418.2,3417.3,2.92622]
[1721132256829,2.92536,3418.4,3417.4,2.9846399]
[1721132257034,2.92543,3418.3,3417.6,2.92602]
[1721132257242,2.421,3418.7,3417.4,2.263]
[1721132257566,2.92588,3417.8,3417.1,3.0]
[1721132258271,2.92588,3417.8,3417.0,2.92653]
[1721132258272,2.92604,3417.6,3416.8,2.92667]
[1721132258436,2.92604,3417.6,3416.9,3.0]
[1721132258823,2.92617,3417.5,3416.9,3.0]
[1721132259059,2.92617,3417.5,3416.8,5.92671]
[1721132259281,3.019,3418.3,3416.8,5.92671]
[1721132259282,2.92506,3418.8,3417.9,2.92575]
[1721132259430,2.92506,3418.8,3417.2,2.92631]
[1721132259431,2.92519,3418.6,3417.7,2.92587]
[1721132259628,2.92519,3418.6,3417.7,5.85173]
[1721132259863,2.92519,3418.6,3417.8,5.92578]
[1721132260454,2.92519,3418.6,3417.9,2.92575]
[1721132260746,2.92544,3418.3,3417.8,3.0]
[1721132260953,2.92544,3418.3,3417.5,5.92606]
[1721132261167,2.98373352,3418.5,3417.5,5.92606]
[1721132261168,2.92534,3418.5,3417.6,2.92594]
[1721132261332,2.92534,3418.5,3417.7,5.92589]
[1721132261532,2.92534,3418.5,3417.7,2.92589]
[1721132261773,2.92534,3418.5,3417.8,3.0]
[1721132261998,2.92502,3418.8,3417.9,2.9257]
[1721132262133,2.92502,3418.8,3417.9,6.26342604]
[1721132262473,2.92502,3418.8,3418.0,5.92566]
[1721132263769,2.92516,3418.7,3418.0,3.0]
[1721132263942,2.92516,3418.7,3417.9,5.92576]
[1721132265041,2.92519,3418.6,3417.9,5.92576]
[1721132265245,2.92573,3418.0,3417.2,2.3745]
[1721132265455,2.92573,3418.0,3417.1,2.92643]
[1721132265456,0.05839352,3417.9,3417.1,2.92643]
[1721132265678,2.92587,3417.8,3416.9,2.92659]
[1721132265885,2.92587,3417.8,3416.9,2.92655]
[1721132266041,2.92595,3417.7,3416.9,2.92655]
[1721132266564,2.92595,3417.7,3416.7,2.3745]
[1721132266565,2.92595,3417.7,3417.0,2.92651]
[1721132267270,2.92595,3417.7,3417.1,3.0]
[1721132268138,2.92595,3417.7,3416.9,5.92662]
[1721132268336,2.92595,3417.7,3417.0,2.92653]
[1721132268572,2.92607,3417.6,3416.9,3.0]
[1721132268742,2.92611,3417.5,3416.8,3.0]
[1721132269072,2.92611,3417.5,3416.8,5.9267]
[1721132269940,2.92628,3417.3,3416.3,3.086]
[1721132270169,2.92628,3417.3,3416.5,2.92696]
[1721132270531,2.92628,3417.3,3416.4,2.927]
[1721132271079,2.92628,3417.3,3415.9,2.92745]
[1721132271080,2.92662,3417.0,3416.0,2.92739]
[1721132271248,0.05839352,3416.9,3416.0,2.92739]
[1721132271606,0.05839352,3416.9,3415.8,5.368]
[1721132271871,0.05839352,3416.9,3415.5,3.086]
[1721132271872,2.92718,3416.3,3415.5,2.92777]
[1721132272098,2.92718,3416.3,3415.4,2.92788]
[1721132272099,2.927,3416.5,3415.6,2.9277]
[1721132272301,2.92712,3416.4,3415.6,2.9277]
[1721132272953,2.92712,3416.4,3415.4,2.92788]
[1721132272954,2.92714,3416.3,3415.4,2.92788]
[1721132273159,2.92714,3416.3,3415.4,2.92783]
[1721132273578,2.92702,3416.5,3415.6,2.92774]
[1721132273765,2.92706,3416.4,3415.6,2.92774]
[1721132274191,2.4028,3416.6,3415.8,2.92756]
[1721132274366,2.4028,3416.6,3415.9,3.0]
[1721132274571,8.25665,3416.6,3415.9,3.0]
[1721132274893,2.4028,3416.6,3415.9,3.0]
[1721132275280,3.47675,3416.8,3415.9,5.92745]
[1721132275281,3.47671,3416.8,3415.9,5.92745]
[1721132275485,2.92668,3416.9,3416.0,2.92733]
[1721132275981,2.92671,3416.8,3416.0,2.92733]
[1721132276182,2.92657,3417.0,3416.1,2.92731]
[1721132276694,2.92634,3417.3,3416.5,2.92696]
[1721132277804,2.92634,3417.3,3416.3,2.92713]
[1721132278115,2.9265,3417.1,3416.2,5.92717]
[1721132278356,2.9265,3417.1,3416.2,3.0]
[1721132278613,2.9265,3417.1,3416.1,5.92729]
[1721132278614,2.92668,3416.9,3416.1,5.92729]
[1721132279637,2.9265,3417.1,3416.3,2.92706]
[1721132279804,2.9261,3417.6,3416.5,2.92694]
[1721132279978,5.673,3417.9,3416.7,2.92679]
[1721132279979,2.92612,3417.5,3416.7,2.92679]
[1721132280309,2.92585,3417.8,3416.8,2.92669]
[1721132281100,2.92607,3417.6,3416.8,2.92669]
[1721132281492,3.18,3417.9,3416.8,0.827838]
[1721132281815,3.18,3417.9,3417.2,2.92635]
[1721132282035,4.14267548,3418.7,3417.7,2.92594]
[1721132282036,2.92512,3418.7,3417.7,2.92594]
[1721132282199,5.29185,3418.9,3417.9,2.92572]
[1721132282383,2.92516,3418.7,3417.9,2.92572]
[1721132282891,5.29185,3418.9,3418.0,2.92568]
[1721132283206,2.92474,3419.1,3418.1,2.92559]
[1721132283526,2.92486,3419.0,3418.1,2.92559]
[1721132283887,3.18,3419.3,3418.2,2.92551]
[1721132284214,3.18,3419.3,3418.4,2.92527]
[1721132284803,3.18,3419.3,3418.5,2.92525]
[1721132285185,2.92466,3419.2,3418.4,2.92527]
[1721132285415,2.92466,3419.2,3418.5,2.92525]
[1721132285623,3.18,3419.3,3418.5,2.92525]
[1721132285982,2.92467,3419.2,3418.4,2.92533]
[1721132286422,2.92467,3419.2,3418.2,5.23805]
[1721132286628,2.92467,3419.2,3418.3,2.92542]
[1721132287122,2.92467,3419.2,3418.4,2.92534]
[1721132287343,2.92467,3419.2,3418.2,8.1635]
[1721132287508,0.05839352,3419.1,3418.3,2.92536]
[1721132288054,2.92467,3419.2,3418.4,2.92533]
[1721132288941,3.18,3419.3,3418.4,2.92533]
[1721132289162,3.18,3419.3,3418.6,2.92511]
[1721132289323,3.18,3419.3,3418.8,2.92492]
[1721132289525,1.22099514,3420.0,3419.0,2.92481]
[1721132289737,1.22099514,3420.0,3418.9,3.0]
[1721132289738,2.92408,3419.9,3418.9,3.0]
[1721132289939,2.92417,3419.8,3418.9,5.92485]
[1721132290240,2.98256352,3419.8,3418.9,5.92485]
[1721132290561,2.92439,3419.6,3418.9,3.0]
[1721132290768,2.98280352,3419.5,3418.6,8.40942]
[1721132291048,2.98280352,3419.5,3418.7,2.92508]
[1721132291258,2.92414,3419.8,3419.0,2.92482]
[1721132292961,2.92414,3419.8,3418.8,3.0]
[1721132293254,0.05839352,3419.7,3418.8,5.925]
[1721132293477,2.92437,3419.6,3418.8,3.0]
[1721132293762,0.05839352,3419.7,3419.0,2.9248]
[1721132294067,2.92409,3419.9,3419.0,2.9248]
[1721132294532,2.92414,3419.8,3419.0,2.9248]
[1721132295873,2.92411,3419.9,3419.0,2.9248]
[1721132296058,2.92411,3419.9,3419.1,2.92473]
[1721132296268,2.92392,3420.1,3419.2,2.92464]